Cogmind - Beta 16.1 @@@ ROGUE MODE // 2026.04.10 @ 19:50:23 Player: Ace Result: Smashed by cave-in Performance ------------- Evolutions (0) 0 Regions Visited (1) 200 Robots Destroyed (7) 35 Value Destroyed (97) 97 Prototype IDs (0) 0 Alien Tech Used (0) 0 Bonus (0) 0 TOTAL SCORE: 332 Bonus ------- None Cogmind --------- Core Integrity 0/250 Matter 269/300 Energy 53/100 System Corruption 14% Temperature Warm (116) Movement Rolling (80) Location -10/Materials Parts ------- > --- POWER (1) -------- (None) > --- PROPULSION (2) --- Wheel > --- UTILITY (2) ------ Small Storage Unit > --- WEAPON (2) ------- Beam Cannon > --- INVENTORY (8) ---- Light Ion Engine Compact Wheel Compact Wheel Small Storage Unit Seismic Detector Medium Laser Hammer Hammer Peak State ------------ > --- POWER ------------ Ion Engine > --- PROPULSION ------- Wheel Compact Wheel > --- UTILITY ---------- Small Storage Unit Seismic Detector > --- WEAPON ----------- Medium Laser Light Assault Rifle > --- INVENTORY -------- Light Ion Engine Small Laser [Rating: 7] Favorites ----------- Power Light Ion Engine Engine Light Ion Engine Propulsion Wheel Wheel Wheel Utility Small Storage Unit Device Seismic Detector Storage Small Storage Unit Processor Signal Interpreter Weapon Light Assault Rifle Energy Gun Medium Laser Energy Cannon Beam Cannon Ballistic Gun Light Assault Rifle Impact Weapon Hammer Build | -11 -10 ------- Run | Yrd Mat Slots Evolved . | . . Power . | . . Propulsion . | . . Utility . | . . Weapon . | . . Parts Attached 13 | 10 3 Power 2 | 2 . Engine 2 | 2 . Core . | . . Reactor . | . . Propulsion 3 | 3 . Treads . | . . Leg . | . . Wheel 3 | 3 . Hover . | . . Flight . | . . Utility 3 | 2 1 Device 1 | 1 . Storage 1 | 1 . Processor 1 | . 1 Hackware . | . . Protection . | . . Artifact . | . . Weapon 5 | 3 2 Energy Gun 2 | 2 . Energy Cannon 1 | . 1 Ballistic Gun 1 | 1 . Ballistic Cannon . | . . Launcher . | . . Special Weapon . | . . Impact Weapon 1 | . 1 Slashing Weapon . | . . Piercing Weapon . | . . Special Melee Weapon . | . . Unidentified Prototypes . | . . Parts Lost 4 | . 4 Power 1 | . 1 Propulsion 1 | . 1 Utility 1 | . 1 Weapon 1 | . 1 Highest Loss Streak 4 | . 4 To Critical Strikes . | . . Average Backups 5 | 2 7 Power 1 | 1 1 Propulsion 1 | . 2 Utility 1 | . 2 Weapon 1 | . 2 Tool/Special . | . . Unused Backups 5 | . 5 Power 1 | . 1 Propulsion 1 | . 1 Utility 2 | . 2 Weapon 1 | . 1 Tool/Special . | . . Average Slot Usage (%) 97 | . 97 Engine 12 | . 12 Wheel 28 | . 28 Device 7 | . 7 Storage 14 | . 14 Processor 5 | . 5 Energy Gun 8 | . 8 Energy Cannon 1 | . 1 Ballistic Gun 14 | . 14 Impact Weapon 4 | . 4 Peak Build Rating 7 | 7 7 Average Rating 6 | 5 6 On Entrance 3 | . 7 Avg Prop Armor Cover (%) . | . . Naked Turns . | . . Heaviest Build 14 | 14 12 Greatest Support 26 | 26 20 Greatest Overweight (x) . | . . Average Overweight (x) . | . . Largest Inventory Capacity 8 | 8 8 Average Capacity 7 | 7 8 Most Carried 8 | 7 8 Average Carried 6 | 2 7 Final Capacity 8 | 8 8 Final Carried 8 | 7 8 Class Distribution -------------------- 100% | Mutant Dominant Class ---------------- Mutant | -10/Materials Resources | -11 -10 ----------- Run | Yrd Mat Matter Collected 307 | 229 78 Remotely . | . . Salvage Created 227 | 122 105 Parts 20 | 11 9 Haulers Intercepted . | . . Recyclers Shooed 1 | 1 . Parts Field Recycled . | . . Retrieved Matter . | . . Parts Self-Destructed . | . . Prevented . | . . Parts Restored . | . . Kills | -11 -10 ------- Run | Yrd Mat Combat Hostiles Destroyed 4 | . 4 Guns 1 | . 1 Cannons 3 | . 3 Classes Destroyed 4 | 2 2 Tunneler 2 | 2 . Recycler 1 | 1 . Swarmer 3 | . 3 Grunt 1 | . 1 Best Kill Streak 4 | 3 4 Combat Bots Only 4 | . 4 Max Kills in Single Turn 2 | 2 1 Gunslinging . | . . Exploded . | . . Melee . | . . Uniques/NPCs Destroyed . | . . Combat | -11 -10 -------- Run | Yrd Mat Hostile Shots Fired 25 | . 25 Missed 3 | . 3 Hits 22 | . 22 Projectile 22 | . 22 Damage Taken 643 | . 643 Core 266 | . 266 Absorbed by Shields . | . . Core Remaining (%) 100 | 100 . Volleys Fired 30 | 7 23 Largest 2 | 2 2 Hottest 80 | 70 80 Shots Fired 43 | 14 29 Gun 35 | 14 21 Cannon 8 | . 8 Launcher . | . . Special . | . . Kinetic 28 | 7 21 Thermal 15 | 7 8 Explosive . | . . Electromagnetic . | . . Robot Hit Streak 9 | 5 9 Robot Miss Streak 1 | 1 1 Penetration Max . | . . Secondary Targets . | . . Shots Hit Robots 19 | 9 10 Core Hits 12 | 5 7 Critical Kills 1 | 1 . Critical Parts Destroyed . | . . Critical Strikes 1 | 1 . Destroy 1 | 1 . Melee Attacks 4 | . 4 Impact 4 | . 4 Slashing . | . . Piercing . | . . Sneak Attacks . | . . Combat Hostiles . | . . Follow-up Attacks . | . . Damage Inflicted 222 | 94 128 Guns 136 | 94 42 Cannons 86 | . 86 Explosions . | . . Melee . | . . Ramming . | . . Kinetic 85 | 43 42 Thermal 137 | 51 86 Explosive . | . . Electromagnetic . | . . Impact . | . . Slashing . | . . Piercing . | . . Highest Corruption 12 | . 12 Average Corruption 8 | . 8 Corruption Purged . | . . Corruption Blocked . | . . Effects 1 | . 1 Energy Discharges 1 | . 1 Overload Shots . | . . Overflow Damage . | . . Projectiles . | . . Explosions . | . . Melee . | . . Knockbacks . | . . Impact . | . . Kinetic . | . . Secondary . | . . Self-Inflicted Damage . | . . Shots . | . . Rammed . | . . Targets Rammed . | . . Kicked . | . . Crushed . | . . Highest Temperature 120 | 90 120 Average Temperature 49 | 35 65 Received Heat Transfer 36 | . 36 Siege Activations . | . . Martial Activations . | . . Shielding Activations . | . . Robots Disrupted . | . . Combat Hostiles . | . . Robots Corrupted . | . . Combat Hostiles . | . . Parts Fried . | . . Impact Corruptions . | . . Robots Melted . | . . Combat Hostiles . | . . Parts Melted . | . . Heat Transferred 333 | 148 185 Parts Sabotaged . | . . Parts Stolen . | . . Parts Stripped . | . . Power Chain Reactions . | . . Alert | -11 -10 ------- Run | Yrd Mat Maximum Alert Level . | . . Low Security (%) 100 | 100 100 Level 1 . | . . Level 2 . | . . Level 3 . | . . Level 4 . | . . Level 5 . | . . High Security . | . . Max Security . | . . Peak Influence 80 | 10 80 Initial . | . . Average 3 | 2 3 Influence Increases 117 | 15 102 Destroy 0b10 Robot/C 80 | . 80 Destroy 0b10 Robot/NC 15 | 15 . Destroy Leader 20 | . 20 Destroy Structure 2 | . 2 Influence Decreases 67 | 15 52 Time Decay 27 | 15 12 Lost Part 40 | . 40 Squads Dispatched . | . . Investigation . | . . Extermination . | . . Reinforcement . | . . Assault . | . . Garrison . | . . Intercept . | . . Searches Triggered . | . . Construction Impeded . | . . Haulers Reinforced . | . . Active Scanning Responses . | . . Cargo Convoy Interrupts . | . . Stealth | -11 -10 --------- Run | Yrd Mat Distress Signals . | . . Communications Jammed . | . . Distress Signals . | . . Times Spotted 8 | . 8 Peak Tracking Total 9 | . 9 Tactical Retreats . | . . Traps | -11 -10 ------- Run | Yrd Mat Traps Triggered . | . . Indirectly . | . . Trap Hack Attempts . | . . Triggered . | . . Disarmed . | . . Reprogrammed . | . . Reused . | . . Traps Extracted . | . . Installed . | . . Triggered . | . . Machines | -11 -10 ---------- Run | Yrd Mat Machines Disabled . | . . Max in Single Turn . | . . Machines Repaired . | . . Machines Dismantled . | . . Machines Sabotaged . | . . Overloaded Fab Kills . | . . Hacking | -11 -10 --------- Run | Yrd Mat Machines Accessed 1 | . 1 Terminals . | . . Fabricators . | . . Repair Stations . | . . Recycling Units 1 | . 1 Scanalyzers . | . . Garrison Access . | . . Total Hacks 2 | . 2 Successful 2 | . 2 Failed . | . . Catastrophic . | . . Database Lockouts . | . . Manual 1 | . 1 Terminals . | . . Fabricators . | . . Repair Stations . | . . Recycling Units 2 | . 2 Scanalyzers . | . . Garrison Access . | . . Terminal Hacks . | . . Fabricator Hacks . | . . Repair Station Hacks . | . . Recycling Unit Hacks 2 | . 2 Report Inventory 1 | . 1 Retrieve Components 1 | . 1 Scanalyzer . | . . Garrison Access Hacks . | . . Unauthorized Hacks . | . . Terminals . | . . Fabricators . | . . Repair Stations . | . . Recycling Units . | . . Scanalyzers . | . . Garrison Access . | . . Data Cores Recovered . | . . Used . | . . Hacking Detections . | . . Full Trace Events . | . . Feedback Events . | . . Feedback Blocked . | . . Robot Schematics Acquired . | . . Robots Built . | . . Authchips . | . . Time . | . . Total Robot Build Rating . | . . Part Schematics Acquired . | . . Parts Built . | . . Authchips . | . . Time . | . . Total Part Build Rating . | . . Part Studies Acquired . | . . Parts Repaired . | . . Time . | . . Parts Recycled . | . . Recycled Matter . | . . Retrieved Matter . | . . Retrieved Components 2 | . 2 Parts Scanalyzed . | . . Part Schematics Acquired . | . . Parts Damaged . | . . Bothacking | -11 -10 ------------ Run | Yrd Mat Used RIF Installer . | . . Robots Hacked . | . . Non-combat . | . . Combat . | . . Robot Hacks Applied . | . . Relay Couplers Released . | . . Fabnet Peak Effective % . | . . Robots Rewired . | . . Allies Hacked . | . . Hacks Repelled . | . . Allies | -11 -10 -------- Run | Yrd Mat Total Allies . | . . Largest Group . | . . Highest-Rated Group . | . . Highest-Rated Ally . | . . Total Orders . | . . Ally Attacks . | . . Total Damage . | . . Kills . | . . Allies Corrupted . | . . Allies Melted . | . . Intel | -11 -10 ------- Run | Yrd Mat Active Infowar (turns) 150 | 49 101 Seismic 150 | 49 101 Robot Analysis Total . | . . Derelict Logs Recovered . | . . Drone Launches . | . . Drone Recoveries . | . . Exploration | -11 -10 ------------- Run | Yrd Mat Turns Passed 315 | 115 200 Spaces Moved 238 | 73 165 Core 2 | 2 . Treads . | . . Legs . | . . Wheels 236 | 71 165 Hover . | . . Flight . | . . Fastest Speed 50 | 50 80 Average Speed 81 | 85 80 Slowest Speed 90 | 90 80 Overloaded Moves . | . . Propulsion Burnouts . | . . Robots Hopped . | . . Potential Cave-ins . | . . Cave-ins Triggered 6 | . 6 Exploration Rate (%) 15 | 3 28 Regions Visited 1 Branch Regions . Pre-discovered Areas . | . . Known Exits Taken . | . . Unknown Exits Taken 1 | 1 . Scrap Searched . | . . Spaces Dug 3 | . 3 Terrain Destroyed 3 | . 3 Melee 3 | . 3 Projectile . | . . AOE . | . . Terrain Rammed . | . . Walls Destroyed . | . . Machines Disabled . | . . Actions | -11 -10 --------- Run | Yrd Mat Total 311 | 108 203 Wait 12 | 11 1 Move 237 | 72 165 Hop . | . . Pick Up 12 | 8 4 Fast Attach 6 | 6 . Attach 1 | 1 . Detach . | . . Swap 6 | 3 3 Drop 3 | . 3 Fire 30 | 7 23 Melee 4 | . 4 Ram . | . . Kick . | . . Crush . | . . Escape Stasis . | . . Rewire . | . . Trap . | . . Miscellaneous . | . . Route ------- -11/Scrapyard -10/Materials (discovered 2 exits: *Mat / [*Min]) History --------- Turn | Location | Event 15 | -11/Scrapyard | Discovered new exit (range 16) 116 | -11/Scrapyard | Entered Materials 125 | -10/Materials | Discovered new exit (range 13) 206 | -10/Materials | Discovered new exit (range 14) 218 | -10/Materials | Identified exit to Materials 299 | -10/Materials | Crushed by falling debris 302 | -10/Materials | Crushed by falling debris 302 | -10/Materials | Core integrity fell below 50% 308 | -10/Materials | Crushed by falling debris 312 | -10/Materials | Crushed by falling debris 312 | -10/Materials | Core integrity fell below 20% 312 | -10/Materials | System corruption reached 10% 316 | -10/Materials | Crushed by falling debris 317 | -10/Materials | Build established: Mutant 317 | -10/Materials | Crushed by falling debris 317 | -10/Materials | Smashed by cave-in Last Messages --------------- 00299_ System corrupted by crushing effect (+5). 00300_ S-10 Pest destroyed. 00302_ The unstable cave ceiling collapses. 00302_ Crushed by falling debris. 00306_ G-47 Trooper destroyed. 00308_ The unstable cave ceiling collapses. 00308_ Crushed by falling debris. 00309_ S-10 Pest destroyed. 00311_ System corrupted: Energy discharge (-37). 00312_ The unstable cave ceiling collapses. 00312_ Crushed by falling debris. 00312_ Lgt. Assault Rifle destroyed. 00312_ System corrupted by crushing effect (+5). [Achievement: System Compromised] 00316_ The unstable cave ceiling collapses. 00316_ Crushed by falling debris. 00317_ The unstable cave ceiling collapses. 00317_ Crushed by falling debris. 00317_ Wheel destroyed. 00317_ System corrupted by crushing effect (+2). Map ----- +----------------------------------------------------+ | | | | | | | | | ?????????????????????????????????############# | | ?????????????????????????????????# || ## | | ?????????????????????????????????# |= ## | | ???????????????????############### |= ## | | ???????????????????# + ## | | ???????????????????# < #####+####### | | ???????????????????# | | ???????????????????######+############ | | ???????????????????# #?????# | | ???????????????????# * #?????# | | ???????????????????# """ #?????######### | | ???????????????????# | [""" #?????????????? | | ???????????????????# |[ """ #??????????#### | | ???????????????????# ! #??????????# "" | | ???????????????????# #??????????# "" | | ???????????????????###########"##?????????# "" | | ??????????????????????# #?????????# | | ??????????????????????# #?????????# ! | | ??????????????????????# ! #?????????#% | | ??????????????????????# u #?????????#### | | ????????????????????###g""" """ #????????????? | | ????????????????????#@gu""" """ #????????????? | | ????????????????????###u""" """ #????????????? | | ??????????????????????# * #????????????? | | ??????????????????????#####+#####????????????? | | ?????????????????????????? ???????????????? | | ?????????????????????????? ?????????????? | | ?????????????????????????? ??????? | | ??????????????????????????#+##?##?????????# | | ??????????????????????????????????????????# | | ??????????????????????????????????????????# | | ?????????????????????????????????????????????? | | ?????????????????????????????????????????????? | | ?????????????????????????????????????????????? | | ?????????????????????????????????????????????? | | ?????????????????????????????????????????????? | | ?????????????????????????????????????????????? | | ?????????????????????????????????????????????? | | ?????????????????????????????????????????????? | | ?????????????????????????????????????????????? | | ?????????????????????????????????????????????? | | ?????????????????????????????????????????????? | | ?????????????????????????????????????????????? | | ?????????????????????????????????????????????? | | ?????????????????????????????????????????????? | | ?????????????????????????????????????????????? | +----------------------------------------------------+ Best States ------------- Heat Dissipation 25 Energy Generation 10 Energy Capacity 250 Matter Stores 300 Matter Capacity 300 Sight Range 16 Terrain Scan Density 10 Evasion (%) 44 Item Schematics ----------------- None Robot Schematics ------------------ None Fabricated ------------ Nothing Repaired ---------- Nothing Studied --------- None Alien Tech Used ----------------- None Achievements -------------- System Compromised Unlikely Earthworm Challenges ------------ None Game ------ Seed TargetMeleeLattice Manual? 0 Play Time 00:08:36 Cumulative 14.1 hours Start 2026.04.10 @ 19:42:51 End 2026.04.10 @ 19:50:23 Sessions 1 Manual Loads 0 Difficulty Rogue Special Mode None Game No. 10 Rogue 6 Adventurer 4 Explorer 0 Win Type - Total 0 Types 0/0/0/0/0/0/0/0/0/0 Lore% 8 Gallery% 11 Achievement% 11 Wizard Run 0 Options --------- Layout 1 ASCII 0 Keyboard 0 Movement Arrows Keybinds 0 Fullscreen 2 Font 24/Smallcaps Map View 50x35 Zoom Use 0% Tactical HUD 1 Map Filters NONE Filters NONE Steam 1 RUN: e5f71669-8282-4e8c-a183-f1e5497a7d88